bitfinex/quotes_SOLUSD_20240612
["timestamp","ask_amount","ask_price","bid_price","bid_amount"]
[1718200628005,2.4938,159.22,159.16,2.3247]
[1718200628212,0.51,159.22,159.16,2.3247]
[1718200628381,2.3241,159.2,159.13,22.74]
[1718200628580,0.555,159.21,159.15,2.3248]
[1718200628780,2.8789,159.21,159.15,2.3248]
[1718200629002,0.555,159.21,159.15,2.3248]
[1718200629389,0.555,159.21,159.16,2.3246]
[1718200629977,0.555,159.21,159.17,2.3245]
[1718200630383,0.555,159.21,159.15,2.3247]
[1718200630885,0.555,159.21,159.16,2.3247]
[1718200631202,0.555,159.21,159.17,2.3245]
[1718200631907,0.555,159.21,159.16,2.3246]
[1718200632113,0.555,159.21,159.17,2.3245]
[1718200632910,0.555,159.21,159.16,2.3246]
[1718200634622,0.34,159.2,159.15,2.3248]
[1718200634829,0.555,159.21,159.16,2.3246]
[1718200634997,0.555,159.21,159.17,2.3245]
[1718200635321,0.555,159.21,159.16,2.3246]
[1718200636093,0.555,159.21,159.15,2.3247]
[1718200636510,2.879,159.21,159.15,2.3247]
[1718200637017,2.3243,159.19,159.13,2.3251]
[1718200637199,0.51,159.2,159.12,2.3252]
[1718200637200,2.3244,159.18,159.12,2.3252]
[1718200637517,2.3244,159.18,159.09,4.6514]
[1718200637709,2.3244,159.18,159.13,2.3251]
[1718200638015,2.3243,159.19,159.13,2.3251]
[1718200638811,2.6644,159.18,159.12,2.3252]
[1718200639012,2.4944,159.18,159.12,2.3252]
[1718200639214,2.3246,159.17,159.11,2.3254]
[1718200639523,2.3246,159.17,159.12,2.3252]
[1718200639524,0.17,159.17,159.12,2.3252]
[1718200639720,0.51,159.17,159.12,2.3252]
[1718200641020,6.7819,159.18,159.12,6.9756]
[1718200641196,6.6119,159.18,159.14,2.3248]
[1718200641520,6.6119,159.18,159.13,2.325]
[1718200641730,6.6119,159.18,159.14,2.3249]
[1718200641896,0.555,159.21,159.16,2.3246]
[1718200642705,0.555,159.21,159.1,22.74]
[1718200642912,6.2884,159.22,159.15,6.9743]
[1718200643125,6.2884,159.22,159.19,2.3242]
[1718200643631,6.2884,159.22,159.17,2.3245]
[1718200644333,6.2884,159.22,159.17,2.3244]
[1718200644618,2.324,159.21,159.15,2.3247]
[1718200645003,6.2884,159.22,159.16,2.3246]
[1718200645004,8.6122,159.22,159.16,2.3246]
[1718200645214,6.2884,159.22,159.17,2.3244]
[1718200646126,8.6123,159.22,159.16,2.3246]
[1718200646324,0.17,159.21,159.12,22.74]
[1718200646625,0.68,159.21,159.1,9.3022]
[1718200646822,2.3241,159.2,159.14,2.3249]
[1718200647004,3.004,159.21,159.15,2.3247]
[1718200647414,0.68,159.21,159.1,4.651]
[1718200647722,2.3241,159.2,159.14,2.3249]
[1718200647927,0.17,159.21,159.12,11.6261]
[1718200648108,2.324,159.21,159.15,2.3247]
[1718200648499,6.4584,159.22,159.17,2.3245]
[1718200648700,8.6122,159.22,159.16,2.3246]
[1718200649022,20.0,159.21,159.16,2.3246]
[1718200649407,20.0,159.21,159.18,2.3243]
[1718200649621,20.0,159.21,159.16,2.3246]
[1718200649925,20.0,159.21,159.13,4.6501]
[1718200649926,22.3239,159.21,159.15,2.3247]
[1718200650217,20.0,159.21,159.16,2.3246]
[1718200650400,20.0,159.21,159.11,32.0412]
[1718200650401,20.0,159.21,159.15,4.6496]
[1718200650603,20.0,159.21,159.17,2.3244]
[1718200651205,20.0,159.21,159.16,2.3246]
[1718200651413,22.324,159.21,159.16,2.3246]
[1718200651911,2.3241,159.2,159.15,2.3248]
[1718200652124,20.0,159.21,159.11,32.0412]
[1718200652125,2.3244,159.18,159.13,2.325]
[1718200653109,2.3244,159.18,159.14,2.3249]
[1718200653309,20.0,159.19,159.15,2.3248]
[1718200653514,2.3241,159.2,159.15,2.3248]
[1718200654642,22.6639,159.21,159.08,38.7577]
[1718200654930,2.3243,159.19,159.14,2.3249]
[1718200655430,7.3124,159.2,159.11,4.6506]
[1718200655737,2.3245,159.17,159.12,2.3251]
[1718200656030,22.4943,159.19,159.12,11.6263]
[1718200656330,20.0,159.18,159.15,2.3247]
[1718200656533,22.4941,159.2,159.15,2.3247]
[1718200657354,20.0,159.2,159.19,2.3242]
[1718200657510,6.421,159.26,159.14,38.7531]
[1718200657841,8.7442,159.26,159.2,2.324]
[1718200658005,2.8784,159.25,159.17,36.6868]
[1718200658209,2.3235,159.24,159.19,2.3242]
[1718200658616,2.8784,159.25,159.19,2.3242]
[1718200659023,22.8784,159.25,159.2,2.3241]
[1718200659236,20.555,159.25,159.2,2.3241]
[1718200659742,20.555,159.25,159.18,2.3243]
[1718200659743,2.3235,159.24,159.18,2.3243]
[1718200660035,22.3235,159.24,159.19,2.3242]
[1718200660250,20.0,159.24,159.2,2.324]
[1718200660426,22.8784,159.25,159.2,2.324]
[1718200661035,22.8784,159.25,159.19,2.3241]
[1718200661235,2.3235,159.24,159.19,2.3241]
[1718200661440,22.3235,159.24,159.19,2.3241]
[1718200662034,2.3235,159.24,159.19,2.3241]
[1718200662336,22.8784,159.25,159.2,2.3241]
[1718200662713,22.8784,159.25,159.19,2.3241]
[1718200663616,2.3236,159.24,159.19,2.3241]
[1718200664110,25.2018,159.25,159.15,4.6494]
[1718200664323,0.68,159.24,159.16,4.6493]
[1718200664518,2.3237,159.23,159.18,2.3243]
[1718200664725,22.8785,159.25,159.17,9.2977]
[1718200665023,2.3235,159.24,159.19,2.3242]
[1718200666218,22.8784,159.25,159.2,2.324]
[1718200666420,22.8784,159.25,159.22,2.3238]
[1718200666421,20.555,159.25,159.22,2.3238]
[1718200666741,20.555,159.25,159.21,2.3239]
[1718200668017,22.8784,159.25,159.2,2.324]
[1718200668841,20.555,159.25,159.19,11.6208]
[1718200669055,2.3235,159.24,159.19,2.3241]
[1718200669548,20.555,159.25,159.18,2.3243]
[1718200669549,25.5419,159.25,159.18,2.3243]
[1718200669751,2.4936,159.24,159.19,2.3242]
[1718200670049,2.3236,159.23,159.18,2.3243]
[1718200670538,2.3235,159.24,159.19,2.3242]
[1718200670723,23.0484,159.25,159.2,2.3241]
[1718200671240,23.0484,159.25,159.2,9.8941]
[1718200672848,23.0484,159.25,159.21,7.57]
[1718200673055,20.0,159.25,159.23,7.57]
[1718200673253,20.0,159.24,159.23,9.8936]
[1718200673946,20.0,159.24,159.23,7.57]
[1718200674860,2.3231,159.27,159.23,9.8936]
[1718200675039,2.3231,159.27,159.24,7.57]
[1718200675243,22.3231,159.27,159.24,7.57]
[1718200675566,22.3231,159.27,159.23,7.57]
[1718200675742,2.3232,159.26,159.23,7.57]
[1718200676063,2.3232,159.26,159.22,9.8937]
[1718200677067,22.3231,159.27,159.22,9.8937]
[1718200677428,2.3232,159.26,159.22,9.8937]
[1718200678352,22.3231,159.27,159.22,9.8937]
[1718200680264,2.3234,159.25,159.2,2.324]
[1718200680473,2.3234,159.25,159.2,7.57]
[1718200680767,20.0,159.25,159.21,9.8939]
[1718200680944,22.3234,159.25,159.21,2.3239]
[1718200681133,22.3234,159.25,159.2,2.324]
[1718200681339,34.5403,159.25,159.16,9.2987]
[1718200681539,34.5403,159.25,159.18,7.57]
[1718200681540,0.17,159.23,159.18,7.57]
[1718200681762,20.0,159.23,159.19,2.3242]
[1718200682557,22.3237,159.23,159.18,2.3243]
[1718200682766,2.3238,159.22,159.18,9.8943]
[1718200682950,22.3237,159.23,159.18,9.8943]
[1718200683156,2.3238,159.22,159.18,9.8943]
[1718200683464,2.3238,159.22,159.18,2.3243]
[1718200684060,2.3237,159.23,159.19,2.3242]
[1718200684244,2.3237,159.23,159.17,4.649]
[1718200684439,2.3238,159.22,159.18,2.3243]
[1718200684756,0.17,159.21,159.17,2.3244]
[1718200684958,0.17,159.21,159.16,2.3246]
[1718200684959,2.494,159.21,159.16,2.3246]
[1718200685159,2.494,159.21,159.14,31.7197]
[1718200685160,0.17,159.21,159.14,2.3248]
[1718200685353,0.17,159.18,159.1,15.9066]
[1718200685551,2.6643,159.19,159.14,2.3249]
[1718200685864,0.34,159.18,159.14,2.3249]
[1718200686061,0.17,159.17,159.14,2.3249]
[1718200686265,20.17,159.18,159.14,2.3249]
[1718200686466,20.0,159.18,159.14,2.3249]
[1718200686643,20.0,159.18,159.16,2.3246]
[1718200686849,20.0,159.19,159.17,2.3245]
[1718200687074,20.0,159.19,159.18,2.3244]
[1718200687256,20.0,159.19,159.1,38.6366]
[1718200687257,0.555,159.22,159.21,2.3239]
[1718200687456,0.555,159.22,159.19,2.3241]
[1718200688053,0.555,159.22,159.17,4.649]
[1718200688369,2.3237,159.23,159.19,2.3242]
[1718200688668,2.3237,159.23,159.17,4.649]
[1718200688965,24.6471,159.24,159.17,2.3244]
[1718200689154,2.3241,159.2,159.16,2.3246]
[1718200689351,2.324,159.21,159.17,2.3245]
[1718200692555,2.324,159.21,159.15,4.6496]
[1718200692556,2.324,159.21,159.16,2.3246]
[1718200693373,20.0,159.22,159.16,11.623]
[1718200693667,22.3238,159.22,159.18,2.3244]
[1718200693882,2.3238,159.22,159.18,2.3244]
[1718200694054,22.3237,159.23,159.18,2.3244]
[1718200694365,2.3238,159.22,159.18,2.3244]
[1718200695169,22.3237,159.23,159.18,2.3244]
[1718200695472,2.3238,159.22,159.18,2.3244]
[1718200695655,22.3237,159.23,159.18,2.3244]
[1718200695968,2.3235,159.24,159.2,2.324]
[1718200697173,2.3237,159.23,159.19,2.3241]
[1718200697988,2.3237,159.23,159.14,0.17]
[1718200697989,0.17,159.23,159.14,4.6497]
[1718200698152,2.324,159.21,159.16,2.3245]
[1718200698346,2.324,159.21,159.17,2.3244]
[1718200699177,22.4939,159.22,159.17,2.3244]
[1718200699554,2.324,159.21,159.17,2.3245]
[1718200699755,22.324,159.21,159.17,2.3245]
[1718200700086,20.0,159.21,159.17,4.649]
[1718200700247,20.0,159.21,159.15,4.6494]
[1718200700451,22.3239,159.22,159.17,2.3244]
[1718200700674,22.3239,159.22,159.18,2.3244]
[1718200701255,20.0,159.22,159.15,4.6494]
[1718200701458,22.3238,159.22,159.18,2.3242]
[1718200701785,20.0,159.21,159.18,2.3243]
[1718200701966,2.3239,159.22,159.17,2.3244]
[1718200702368,2.324,159.21,159.17,2.3244]
[1718200702776,2.3239,159.22,159.17,2.3244]
[1718200702956,2.3239,159.21,159.17,2.3244]
[1718200703156,2.3239,159.22,159.18,2.3244]
[1718200704383,22.4937,159.23,159.19,2.3242]
[1718200704571,0.17,159.22,159.19,2.3242]
[1718200704980,22.3237,159.23,159.17,4.649]
[1718200705369,2.3238,159.22,159.18,2.3243]
[1718200705676,34.07456003,159.23,159.17,2.3244]
[1718200705991,2.324,159.21,159.17,2.3245]
[1718200706179,12.1293,159.22,159.13,22.73]
[1718200706483,2.3246,159.17,159.13,2.325]
[1718200706660,2.3247,159.16,159.12,2.3252]
[1718200706860,2.3246,159.17,159.12,2.3252]
[1718200707057,2.325,159.14,159.1,2.3254]
[1718200707583,2.325,159.14,159.11,7.58]
[1718200708267,32.2294,159.16,159.11,9.9054]
[1718200708268,2.3249,159.15,159.11,9.9054]
[1718200708677,2.3249,159.15,159.11,2.3254]
[1718200708880,29.9047,159.16,159.12,2.3252]
[1718200709256,22.3247,159.16,159.12,2.3252]
[1718200709473,2.3247,159.16,159.12,2.3252]
[1718200709683,0.34,159.15,159.08,6.9776]
[1718200709962,2.4947,159.16,159.12,2.3252]
[1718200710192,0.17,159.15,159.12,2.3252]
[1718200710364,0.17,159.15,159.11,2.3253]
[1718200710562,2.325,159.14,159.07,13.9555]
[1718200710772,2.3251,159.13,159.09,2.3257]
[1718200711466,2.325,159.14,159.1,2.3255]
[1718200711673,22.6648,159.15,159.11,2.3253]
[1718200711862,2.4948,159.15,159.11,2.3253]
[1718200712059,0.17,159.15,159.11,2.3253]
[1718200712265,0.17,159.15,159.12,2.3252]
[1718200712566,2.4948,159.15,159.11,2.3253]
[1718200713069,2.325,159.14,159.1,2.3255]
[1718200713382,2.4948,159.15,159.11,2.3253]
[1718200713688,2.325,159.14,159.1,2.3255]
[1718200714066,2.325,159.14,159.08,4.6516]
[1718200714265,2.325,159.14,159.1,2.3255]
[1718200714568,20.17,159.15,159.09,2.3256]
[1718200714569,2.3251,159.13,159.09,2.3256]
[1718200715276,2.3251,159.13,159.08,2.3257]
[1718200715484,2.3251,159.13,159.09,2.3256]
[1718200715882,2.3252,159.12,159.05,36.1676]
[1718200716081,2.3252,159.12,159.07,2.3259]
[1718200716581,2.3252,159.12,159.05,20.9364]
[1718200716786,9.2400415,159.18,159.15,2.3248]
[1718200717087,9.079,159.19,159.14,2.3249]
[1718200717503,9.079,159.19,159.15,2.3248]
[1718200717873,9.079,159.19,159.16,2.3245]
[1718200717874,6.7547,159.19,159.16,2.3245]
[1718200718216,0.555,159.19,159.14,4.6499]
[1718200718386,0.555,159.19,159.12,9.3006]
[1718200718798,0.555,159.19,159.15,2.3247]
[1718200720511,20.0,159.21,159.13,16.2754]
[1718200720806,2.3243,159.19,159.14,2.3249]
[1718200721022,20.51,159.2,159.16,2.3246]
[1718200721193,2.324,159.21,159.13,11.6253]
[1718200721194,20.0,159.19,159.14,11.6248]
[1718200721389,20.0,159.22,159.18,2.3243]
[1718200722479,22.3238,159.22,159.17,2.3244]
[1718200722679,2.3239,159.21,159.17,2.3244]
[1718200723289,22.3238,159.22,159.17,2.3244]
[1718200724086,2.3242,159.2,159.15,2.3247]
[1718200724286,2.3243,159.19,159.15,2.3247]
[1718200724503,2.3245,159.18,159.11,13.9519]
[1718200724709,2.3243,159.19,159.15,2.3248]
[1718200724885,2.3241,159.2,159.15,2.3248]
[1718200725507,20.51,159.21,159.15,2.3248]
[1718200725508,2.3242,159.19,159.15,2.3248]
[1718200725703,2.3242,159.19,159.15,2.3247]
[1718200726401,2.3241,159.2,159.16,2.3246]
[1718200727297,22.8339,159.21,159.17,2.3244]
[1718200727607,2.4941,159.2,159.16,2.3246]
[1718200727783,22.4941,159.2,159.16,2.3246]
[1718200727984,2.4941,159.2,159.16,2.3246]
[1718200728413,2.4941,159.2,159.15,2.3247]
[1718200729506,11.791,159.2,159.13,2.3251]
[1718200729709,11.791,159.2,159.14,2.3249]
[1718200729710,2.3244,159.18,159.14,2.3249]
[1718200730008,22.4943,159.19,159.14,2.3249]
[1718200730213,22.3243,159.19,159.14,2.3249]
[1718200730399,0.17,159.18,159.14,2.3249]
[1718200730795,2.4944,159.18,159.14,2.3249]
[1718200731508,0.34,159.18,159.1,34.3776]
[1718200731714,0.34,159.18,159.13,2.325]
[1718200731916,2.3246,159.17,159.13,2.325]
[1718200732419,0.34,159.18,159.11,11.6269]
[1718200732593,2.6644,159.18,159.14,2.3249]
[1718200732801,0.17,159.18,159.14,2.3248]
[1718200733188,22.3244,159.19,159.16,2.3247]
[1718200733189,20.0,159.19,159.16,2.3247]
[1718200733390,20.0,159.2,159.17,2.3245]
[1718200733588,20.0,159.2,159.18,2.3242]
[1718200733796,22.3239,159.22,159.18,2.3242]
[1718200734002,2.3239,159.22,159.18,2.3242]
[1718200734191,9.7950415,159.23,159.14,38.5606]
[1718200734488,9.2400415,159.24,159.2,2.324]
[1718200734688,9.2400415,159.25,159.21,2.3238]
[1718200734904,11.5633415,159.26,159.21,2.3238]
[1718200735107,11.5633415,159.26,159.18,20.9191]
[1718200735108,2.3233,159.26,159.19,4.6484]
[1718200735316,7.2154,159.27,159.2,2.324]
[1718200735609,2.3236,159.24,159.19,2.3242]
[1718200735814,2.3237,159.23,159.19,2.3242]
[1718200736042,2.3237,159.23,159.18,2.3243]
[1718200736795,2.3237,159.23,159.17,22.75]
[1718200736796,2.3235,159.24,159.19,2.3242]
[1718200737004,2.3237,159.23,159.19,2.3242]
[1718200737518,2.3237,159.23,159.17,27.399]
[1718200737519,2.3237,159.23,159.18,2.3243]
[1718200737807,2.3235,159.24,159.19,2.3241]
[1718200738390,2.3237,159.23,159.19,2.3241]
[1718200738720,16.2658,159.23,159.14,15.8106]
[1718200738897,2.324,159.21,159.16,2.3246]
[1718200739304,2.324,159.21,159.17,2.3245]
[1718200739811,22.3238,159.22,159.17,2.3245]
[1718200740312,22.3239,159.21,159.17,2.3245]
[1718200740614,2.3239,159.21,159.17,2.3245]
[1718200741023,2.3241,159.2,159.16,2.3246]
[1718200741229,2.4941,159.2,159.16,2.3246]
[1718200741422,0.17,159.2,159.12,6.6184]
[1718200741731,0.17,159.2,159.16,2.3246]
[1718200742026,0.34,159.2,159.17,2.3245]
[1718200743021,20.0,159.22,159.19,2.3242]
[1718200743226,2.4938,159.22,159.18,2.3243]
[1718200743541,0.17,159.21,159.16,4.6493]
[1718200743732,2.6638,159.22,159.18,2.3243]
[1718200743921,0.34,159.22,159.18,2.3243]
[1718200744131,2.6638,159.22,159.18,2.3243]
[1718200744604,2.6638,159.22,159.17,2.3245]
[1718200744605,2.3241,159.21,159.17,2.3245]
[1718200744807,2.3241,159.21,159.16,2.3246]
[1718200745408,2.3241,159.2,159.16,2.3246]
[1718200746022,0.17,159.21,159.14,2.3248]
[1718200746228,2.3243,159.19,159.14,2.3248]
[1718200746531,20.0,159.19,159.16,2.3245]
[1718200746703,20.34,159.22,159.16,2.3245]
[1718200746908,2.324,159.21,159.17,2.3245]
[1718200747102,20.0,159.22,159.15,23.2479]
[1718200747306,2.3237,159.23,159.18,2.3242]
[1718200747517,2.3237,159.23,159.19,2.3242]
[1718200748016,2.3237,159.23,159.18,2.3243]
[1718200748215,2.3238,159.22,159.18,2.3243]
[1718200748443,2.3237,159.23,159.18,2.3243]
[1718200748618,2.3237,159.23,159.19,2.3242]
[1718200750035,22.4935,159.24,159.2,2.3241]
[1718200750236,20.0,159.23,159.22,2.3237]
[1718200750409,20.0,159.23,159.18,4.6485]
[1718200750614,20.0,159.23,159.16,28.1555]
[1718200750815,2.3239,159.22,159.16,21.1814]
[1718200751048,2.3239,159.22,159.18,2.3243]
[1718200751812,20.0,159.23,159.2,2.324]
[1718200752017,2.3235,159.24,159.2,2.324]
[1718200752517,20.34,159.25,159.17,16.2717]
[1718200752744,2.6636,159.24,159.2,2.3241]
[1718200752919,2.6636,159.24,159.2,9.8941]
[1718200753113,20.0,159.25,159.21,7.57]
[1718200753338,22.3232,159.26,159.22,9.8937]
[1718200753537,22.3232,159.26,159.22,2.3237]
[1718200754124,20.0,159.26,159.22,2.3237]
[1718200754325,20.0,159.26,159.22,9.8937]
[1718200754646,20.0,159.26,159.23,2.3236]
[1718200755242,2.8781,159.27,159.23,2.3236]
[1718200755939,0.17,159.26,159.18,6.9728]
[1718200756114,2.3236,159.24,159.2,9.894]
[1718200757546,20.0,159.25,159.2,9.894]
[1718200757547,2.3237,159.23,159.2,7.57]
[1718200757726,2.3238,159.22,159.18,2.3243]
[1718200757922,2.3237,159.23,159.19,9.8942]
[1718200758455,2.3236,159.24,159.2,2.3241]
[1718200758741,29.8934,159.25,159.21,2.3239]
[1718200758943,22.3234,159.25,159.21,2.3239]
[1718200759139,2.3234,159.25,159.21,2.3239]
[1718200759523,2.3235,159.24,159.2,2.324]
[1718200759739,0.17,159.25,159.17,20.9201]
[1718200759951,2.3235,159.24,159.2,2.324]
[1718200761448,2.4934,159.25,159.21,2.3239]
[1718200762551,29.24499096,159.26,159.2,4.6481]
[1718200762740,22.3232,159.26,159.22,2.3237]
[1718200763661,22.3232,159.26,159.21,11.6196]
[1718200763662,20.0,159.26,159.21,11.6196]
[1718200763836,20.0,159.27,159.24,2.3235]
[1718200764355,2.3234,159.25,159.21,2.3239]
[1718200764544,2.3234,159.25,159.19,11.621]
[1718200764545,20.0,159.27,159.2,11.6203]
[1718200764754,2.3232,159.26,159.22,2.3237]
[1718200766127,2.3233,159.25,159.21,2.3238]
[1718200768465,22.3233,159.26,159.22,2.3238]
[1718200769660,2.3234,159.25,159.21,2.3239]
[1718200769859,22.3233,159.26,159.22,2.3238]
[1718200770067,20.0,159.26,159.23,2.3236]
[1718200770373,2.3232,159.26,159.22,2.3237]
[1718200771652,2.3233,159.25,159.21,2.3238]
[1718200772355,2.3236,159.24,159.2,2.3241]
[1718200772553,22.3234,159.25,159.21,2.3239]
[1718200773371,2.3234,159.25,159.21,2.3239]
[1718200774459,0.17,159.25,159.19,4.6485]
[1718200774665,0.68,159.25,159.21,2.3239]
[1718200774848,3.0034,159.25,159.21,2.3239]
[1718200776462,2.3236,159.24,159.2,2.324]
[1718200776658,3.0034,159.25,159.21,2.3239]
[1718200777396,0.34,159.25,159.22,2.3237]
[1718200777557,29.24113589,159.26,159.22,2.3237]
[1718200777894,31.56433589,159.26,159.22,2.3237]
[1718200778392,29.24113589,159.26,159.22,2.3237]
[1718200778757,31.56433589,159.26,159.22,2.3237]
[1718200778986,31.56433589,159.26,159.22,9.8937]
[1718200779485,29.24113589,159.26,159.23,9.8936]
[1718200779664,31.56433589,159.26,159.23,7.57]
[1718200780389,31.56433589,159.26,159.22,9.8937]
[1718200782272,20.0,159.26,159.23,2.3236]
[1718200783459,22.3232,159.26,159.22,9.8937]
[1718200784976,20.0,159.26,159.23,2.3236]
[1718200785176,22.3232,159.26,159.22,9.8937]
[1718200785615,22.3232,159.26,159.22,2.3237]
[1718200785905,22.3232,159.26,159.22,9.8937]
[1718200786071,20.0,159.26,159.23,2.3236]
[1718200786497,22.3232,159.26,159.22,9.8937]
[1718200787303,20.0,159.26,159.23,2.3236]
[1718200787471,19.66519763,159.26,159.23,2.3236]
[1718200788113,19.16519763,159.26,159.23,2.3236]
[1718200788400,19.16519763,159.26,159.23,9.8936]
[1718200788796,21.48839763,159.26,159.23,9.8936]
[1718200788998,21.48839763,159.26,159.22,2.3237]
[1718200789200,30.74184766,159.26,159.22,9.8937]
[1718200789583,0.17,159.25,159.18,6.9731]
[1718200789817,2.3235,159.24,159.21,7.57]
[1718200790488,2.3235,159.24,159.21,9.8939]
[1718200790693,2.3234,159.25,159.21,7.57]
[1718200790880,30.73887976,159.26,159.23,7.57]
[1718200791085,30.73887976,159.26,159.23,9.8936]
[1718200791295,30.73887976,159.26,159.22,9.8937]
[1718200792179,30.73887976,159.26,159.22,2.3237]
[1718200792390,30.73887976,159.26,159.22,9.8937]
[1718200792914,21.48849763,159.26,159.22,9.8937]
[1718200793124,11.56556184,159.26,159.22,9.8937]
[1718200793312,20.0,159.25,159.22,9.8937]
[1718200794031,29.24226184,159.25,159.23,2.3236]
[1718200794314,29.24226184,159.25,159.23,9.8936]
[1718200794525,20.0,159.25,159.23,2.3236]
[1718200794815,29.24226184,159.25,159.23,9.8936]
[1718200795126,20.0,159.25,159.23,9.8936]
[1718200795311,20.0,159.25,159.24,2.3235]
[1718200795531,20.0,159.25,159.23,9.8936]
[1718200795826,20.0,159.25,159.24,2.3235]
[1718200796006,20.0,159.25,159.23,9.8935]
[1718200798698,9.2908,159.3,159.26,2.3232]
[1718200798699,2.3227,159.3,159.26,2.3232]
[1718200798904,8.3529,159.31,159.27,2.323]
[1718200799110,0.555,159.32,159.28,7.57]
[1718200799427,2.3222,159.34,159.3,9.8926]
[1718200799598,13.6916,159.35,159.3,7.57]
[1718200799599,25.3014,159.35,159.3,7.57]
[1718200799937,13.6916,159.35,159.3,7.57]
[1718200800107,2.322,159.34,159.3,9.8925]
[1718200800414,9.25259884,159.32,159.3,7.57]
[1718200800727,9.25259884,159.32,159.3,9.8925]
[1718200801029,9.25259884,159.33,159.3,7.57]
[1718200801199,2.3221,159.34,159.3,9.8926]
[1718200801395,12.2136,159.36,159.22,15.6955]
[1718200801396,2.3224,159.32,159.28,2.3228]
[1718200801602,2.3225,159.31,159.25,4.6465]
[1718200801813,2.3225,159.31,159.28,7.57]
[1718200802023,20.0,159.32,159.29,7.57]
[1718200802195,20.0,159.34,159.3,9.8925]
[1718200802601,2.322,159.34,159.3,9.8925]
[1718200802825,2.322,159.34,159.28,4.6458]
[1718200802826,6.3499,159.39,159.33,7.57]
[1718200803003,6.3499,159.39,159.35,7.57]
[1718200803004,2.3214,159.39,159.35,7.57]
[1718200803202,8.125,159.41,159.37,7.57]
[1718200803203,2.3211,159.41,159.37,7.57]
[1718200803402,23.2183,159.44,159.35,9.2875]
[1718200803403,11.6147,159.44,159.35,9.2875]
[1718200803643,11.6147,159.44,159.41,7.57]
[1718200803837,11.6147,159.44,159.42,7.57]
[1718200804012,11.6147,159.44,159.41,2.3209]
[1718200804013,11.6147,159.44,159.41,7.57]
[1718200804323,11.6147,159.44,159.42,7.57]
[1718200804529,11.6147,159.44,159.4,2.3211]
[1718200804734,11.6147,159.44,159.42,9.8908]
[1718200805030,11.6147,159.44,159.42,7.57]
[1718200805604,11.6147,159.44,159.41,2.3209]
[1718200805813,13.9354,159.44,159.39,2.3212]
[1718200806021,2.321,159.42,159.36,45.2898]
[1718200806220,11.6147,159.44,159.36,47.6115]
[1718200806221,2.321,159.41,159.36,47.6115]
[1718200806414,20.0,159.43,159.39,2.3213]
[1718200806614,20.0,159.43,159.4,7.57]
[1718200807032,20.0,159.43,159.36,27.2232]
[1718200807033,20.0,159.43,159.41,7.57]
[1718200807232,20.0,159.43,159.41,2.321]
[1718200807441,20.0,159.43,159.42,7.57]
[1718200807737,2.3197,159.5,159.45,2.3203]
[1718200807911,100.555,159.54,159.49,2.3198]
[1718200807912,2.3192,159.54,159.49,2.3198]
[1718200808111,2.3193,159.53,159.48,2.32]
[1718200808326,2.3193,159.53,159.5,7.57]
[1718200808517,2.3193,159.53,159.44,30.28]